[Event "St Kilda East and Caulfield Chess Club RAPID Term 3, 2025"]
[Site "st kilda east, Australia"]
[Date "2025.07.21"]
[Round "4.1"]
[White "Rosenberger, Oliver"]
[Black "Bambridge, Greg"]
[Result "1-0"]
[TimeControl "13 minutes per game plus 2 seconds from move 1"]
[WhiteElo "1675"]
[BlackElo "1081"]

1. d4 {[%clk 00:13:01]} Nf6 {[%clk 00:13:00]} {[%emt 00:00:04]} 2. c4 {[%clk
00:13:01]} e6 {[%clk 00:13:00]} {[%emt 00:00:03]} 3. Nc3 {[%clk 00:13:01]}
{[%emt 00:00:01]} Bb4 {[%clk 00:13:00]} {[%emt 00:00:01]} 4. f3 {[%clk
00:13:02]} {[%emt 00:00:02]} Nc6 {[%clk 00:12:32]} {[%emt 00:00:31]} 5. a3
{[%clk 00:12:39]} {[%emt 00:00:25]} Bxc3+ {[%clk 00:12:26]} {[%emt 00:00:08]} 6.
bxc3 {[%clk 00:12:39]} {[%emt 00:00:03]} O-O {[%clk 00:12:25]} {[%emt
00:00:03]} 7. e3 {[%clk 00:12:37]} {[%emt 00:00:03]} d6 {[%clk 00:12:23]}
{[%emt 00:00:05]} 8. Bd3 {[%clk 00:12:33]} {[%emt 00:00:06]} e5 {[%clk
00:11:53]} {[%emt 00:00:32]} 9. Ne2 {[%clk 00:12:32]} {[%emt 00:00:02]} Re8
{[%clk 00:11:31]} {[%emt 00:00:25]} 10. O-O {[%clk 00:12:23]} {[%emt 00:00:10]}
b6 {[%clk 00:10:51]} {[%emt 00:00:42]} 11. e4 {[%clk 00:12:12]} {[%emt
00:00:13]} Ba6 {[%clk 00:10:29]} {[%emt 00:00:24]} 12. Bg5 {[%clk 00:11:55]}
{[%emt 00:00:18]} h6 {[%clk 00:10:29]} {[%emt 00:00:03]} 13. Bh4 {[%clk
00:11:55]} {[%emt 00:00:01]} Na5 {[%clk 00:10:20]} {[%emt 00:00:11]} 14. f4
{[%clk 00:11:46]} {[%emt 00:00:11]} Bxc4 {[%clk 00:10:05]} {[%emt 00:00:17]} 15.
fxe5 {[%clk 00:11:43]} {[%emt 00:00:04]} dxe5 {[%clk 00:10:01]} {[%emt
00:00:07]} 16. Bxf6 {[%clk 00:11:13]} {[%emt 00:00:31]} gxf6 {[%clk 00:09:58]}
{[%emt 00:00:02]} 17. Ng3 {[%clk 00:11:13]} {[%emt 00:00:05]} Kh7 {[%clk
00:08:20]} {[%emt 00:01:41]} 18. Nh5 {[%clk 00:10:52]} {[%emt 00:00:23]} Re6
{[%clk 00:07:46]} {[%emt 00:00:36]} 19. d5 {[%clk 00:10:40]} {[%emt 00:00:14]}
Rd6 {[%clk 00:07:44]} {[%emt 00:00:04]} 20. Bxc4 {[%clk 00:10:07]} {[%emt
00:00:34]} Nxc4 {[%clk 00:07:44]} {[%emt 00:00:02]} 21. Qe2 {[%clk 00:10:07]}
{[%emt 00:00:02]} b5 {[%clk 00:07:30]} {[%emt 00:00:17]} 22. Rf3 {[%clk
00:10:05]} {[%emt 00:00:03]} Qe7 {[%clk 00:06:40]} {[%emt 00:00:53]} 23. Raf1
{[%clk 00:10:02]} {[%emt 00:00:05]} Rg8 {[%clk 00:06:40]} {[%emt 00:00:02]} 24.
Rxf6 {[%clk 00:09:49]} {[%emt 00:00:15]} Rxf6 {[%clk 00:06:20]} {[%emt
00:00:22]} 25. Nxf6+ {[%clk 00:09:48]} {[%emt 00:00:03]} Kh8 {[%clk 00:06:15]}
{[%emt 00:00:07]} 26. Nxg8 {[%clk 00:09:28]} {[%emt 00:00:22]} Kxg8 {[%clk
00:06:15]} {[%emt 00:00:02]} 27. Qh5 {[%clk 00:09:22]} {[%emt 00:00:07]} Kg7
{[%clk 00:06:09]} {[%emt 00:00:09]} 28. Rf3 {[%clk 00:09:20]} {[%emt 00:00:03]}
Nd2 {[%clk 00:05:40]} {[%emt 00:00:33]} 29. Rg3+ {[%clk 00:09:17]} {[%emt
00:00:05]} Kh7 {[%clk 00:05:34]} {[%emt 00:00:08]} 30. Qf5+ {[%clk 00:09:12]}
{[%emt 00:00:06]} Kh8 {[%clk 00:05:25]} {[%emt 00:00:12]} 31. Qc8+ {[%clk
00:09:08]} {[%emt 00:00:44]} 1-0